bitfinex-derivatives/quotes_SOLF0:USTF0_20260316
["timestamp","ask_amount","ask_price","bid_price","bid_amount"]
[1773658688272,3.65055682,93.899,93.841,2.99820777]
[1773658689867,3.65055682,93.879,93.831,3.07070941]
[1773658690068,3.63281518,93.87,93.831,3.07070941]
[1773658690263,3.63281518,93.87,93.82,3.63281518]
[1773658690464,3.63281518,93.87,93.82,6.70352459]
[1773658690666,3.65055682,93.879,93.821,3.07070941]
[1773658692576,3.63281518,93.87,93.821,3.07070941]
[1773658694270,3.65055682,93.879,93.831,3.07452331]
[1773658695179,33.56,93.914,93.841,3.07294408]
[1773658695180,3.65055682,93.893,93.841,3.07294408]
[1773658695374,3.63281518,93.89,93.841,3.07294408]
[1773658695776,3.65055682,93.889,93.841,3.07294408]
[1773658698277,3.63124688,93.88,93.841,3.07294408]
[1773658699372,3.65055682,93.889,93.841,3.07294408]
[1773658701681,3.65055682,93.869,93.816,3.10098386]
[1773658701882,3.65055682,93.869,93.821,3.10098386]
[1773658707984,3.63124688,93.86,93.821,3.10098386]
[1773658710090,3.63124688,93.85,93.815,33.56]
[1773658713491,3.63124688,93.87,93.821,3.03410015]
[1773658713991,7.55377193,93.87,93.821,3.03410015]
[1773658714287,3.92252505,93.906,93.821,3.03410015]
[1773658714501,3.92252505,93.889,93.84,3.63124688]
[1773658714699,3.92252505,93.889,93.831,3.04053324]
[1773658715589,3.92252505,93.889,93.841,3.04723307]
[1773658716999,3.63124688,93.89,93.841,3.04723307]
[1773658717594,3.63124688,93.87,93.826,3.09235497]
[1773658717796,3.92252505,93.879,93.826,3.09235497]
[1773658718695,3.92252505,93.879,93.815,33.56]
[1773658718696,3.63124688,93.88,93.831,3.04952578]
[1773658719405,3.92252505,93.899,93.841,3.02841121]
[1773658719592,3.63124688,93.89,93.841,3.02841121]
[1773658719791,3.92252505,93.889,93.841,3.02841121]
[1773658721001,3.63124688,93.89,93.841,3.02841121]
[1773658721602,3.92252505,93.903,93.841,3.02841121]
[1773658721798,3.63124688,93.89,93.841,3.02841121]
[1773658724696,3.92252505,93.889,93.841,3.02841121]
[1773658725511,7.55377193,93.88,93.841,3.02841121]
[1773658725697,3.63124688,93.87,93.826,2.87844253]
[1773658725999,3.63124688,93.87,93.828,2.87844253]
[1773658727705,7.55377193,93.87,93.828,2.87844253]
[1773658728106,3.63124688,93.86,93.813,2.88669157]
[1773658729508,3.92252505,93.889,93.831,2.88604266]
[1773658729999,3.63124688,93.88,93.831,2.88604266]
[1773658730607,7.55377193,93.88,93.831,2.88604266]
[1773658730803,3.92252505,93.879,93.831,2.88604266]
[1773658734305,3.77755666,93.899,93.851,2.97478894]
[1773658741827,3.7259325,93.889,93.842,33.56]
[1773658743726,3.7259325,93.889,93.843,3.01748033]
[1773658749032,3.63124688,93.9,93.843,3.01748033]
[1773658749330,3.7259325,93.899,93.843,3.01748033]
[1773658753440,3.7259325,93.889,93.843,3.01748033]
[1773658753940,3.7259325,93.889,93.842,33.56]
[1773658757436,7.3581292,93.88,93.842,33.56]
[1773658757638,3.7259325,93.88,93.842,33.56]
[1773658759839,3.7259325,93.894,93.843,2.96451004]
[1773658760035,3.7259325,93.894,93.851,2.96451004]
[1773658760542,3.7259325,93.909,93.851,2.96451004]
[1773658760740,3.7259325,93.925,93.871,2.96131583]
[1773658761540,3.7259325,93.925,93.873,2.96131583]
[1773658762142,3.7259325,93.919,93.873,2.96131583]
[1773658763345,3.7259325,93.919,93.872,33.56]
[1773658763546,43.50346794,93.954,93.872,33.56]
[1773658763547,3.62857258,93.909,93.872,33.56]
[1773658764944,3.6321967,93.9,93.872,33.56]
[1773658766142,3.62857258,93.909,93.872,33.56]
[1773658766947,3.62857258,93.909,93.86,2.99580352]
[1773658767650,3.62857258,93.909,93.861,2.98318274]
[1773658771150,3.6321967,93.92,93.861,2.98318274]
[1773658771343,3.6321967,93.93,93.871,2.93913897]
[1773658771653,3.62857258,93.929,93.871,2.93913897]
[1773658773647,3.62857258,93.929,93.881,2.92819845]
[1773658774047,3.62857258,93.919,93.87,3.6321967]
[1773658774252,3.62857258,93.919,93.87,6.55789159]
[1773658775553,3.62857258,93.919,93.871,2.92515453]
[1773658778760,3.62857258,93.909,93.856,2.95183407]
[1773658778958,3.62857258,93.909,93.86,6.60888414]
[1773658779260,19.158,93.939,93.853,33.56]
[1773658779261,3.62857258,93.921,93.871,2.97668744]
[1773658779454,3.62857258,93.919,93.871,2.97668744]
[1773658781659,3.62857258,93.939,93.891,2.98897891]
[1773658786571,3.62857258,93.929,93.88,3.6321967]
[1773658787165,3.62857258,93.929,93.874,2.92920913]
[1773658789671,3.62857258,93.919,93.874,2.92920913]
[1773658789972,3.62857258,93.919,93.861,2.88767291]
[1773658790172,3.62857258,93.919,93.87,3.6321967]
[1773658793274,3.62857258,93.919,93.881,2.93117586]
[1773658793575,3.62857258,93.919,93.87,3.6321967]
[1773658793775,3.62857258,93.919,93.871,2.93117586]
[1773658800178,3.62857258,93.919,93.88,3.6321967]
[1773658800387,3.62857258,93.919,93.871,2.93117586]
[1773658801085,3.62857258,93.919,93.86,6.51174362]
[1773658801281,3.62857258,93.919,93.87,3.6321967]
[1773658801483,3.89031973,93.941,93.881,2.87954692]
[1773658801985,3.89031973,93.939,93.881,2.87954692]
[1773658803686,3.89031973,93.939,93.89,3.6321967]
[1773658804086,3.89031973,93.939,93.881,2.87954692]
[1773658805577,3.89031973,93.929,93.87,3.6321967]
[1773658808284,3.89031973,93.929,93.868,2.79678097]
[1773658808494,3.89031973,93.919,93.868,2.79678097]
[1773658810389,33.54,93.954,93.853,33.56]
[1773658810390,3.89031973,93.953,93.893,2.71773756]
[1773658810691,3.89031973,93.949,93.893,2.71773756]
[1773658811092,3.89031973,93.939,93.88,2.72411694]
[1773658811286,3.89031973,93.939,93.881,2.72411694]
[1773658811489,1.85315356,93.984,93.881,2.72411694]
[1773658811490,3.89031973,93.929,93.881,2.72411694]
[1773658812488,3.89031973,93.919,93.87,3.6321967]
[1773658812994,3.89031973,93.919,93.871,3.04862866]
[1773658813391,3.89031973,93.949,93.894,3.04862866]
[1773658813591,3.89031973,93.949,93.901,3.04862866]
[1773658814291,11.31474527,93.955,93.911,3.04240199]
[1773658815395,3.89031973,93.954,93.911,3.04240199]
[1773658816502,3.6321967,93.95,93.911,3.04240199]
[1773658816994,3.89031973,93.954,93.911,3.04240199]
[1773658817700,3.6321967,93.95,93.911,3.04240199]
[1773658817900,3.89031973,93.954,93.911,3.04240199]
[1773658818793,3.89031973,93.954,93.853,33.56]
[1773658818794,3.62741329,93.94,93.897,3.06564146]
[1773658818995,3.89031973,93.949,93.897,3.06564146]
[1773658819398,3.62741329,93.94,93.897,3.06564146]
[1773658819599,3.89031973,93.949,93.897,3.06564146]
[1773658820289,11.31474527,93.955,93.911,3.0540043]
[1773658820495,11.31474527,93.955,93.921,3.0540043]
[1773658820998,11.31474527,93.955,93.91,3.62741329]
[1773658821301,11.31474527,93.955,93.907,3.04117441]
[1773658821902,3.89031973,93.919,93.859,3.03017956]
[1773658822199,11.31474527,93.955,93.901,3.03017956]
[1773658822399,3.57426598,93.954,93.901,3.03017956]
[1773658823098,3.57426598,93.954,93.91,3.62741329]
[1773658824400,3.57426598,93.954,93.901,3.03017956]
[1773658825097,3.57426598,93.954,93.911,2.83322753]
[1773658825898,11.31474527,93.955,93.911,2.83322753]
[1773658828998,11.31474527,93.955,93.921,2.74362414]
[1773658831807,11.31474527,93.955,93.908,2.71372348]
[1773658832009,11.31474527,93.955,93.911,2.65878574]
[1773658838909,3.57426598,93.939,93.897,2.85549555]
[1773658839211,3.57426598,93.939,93.89,3.62741329]
[1773658839212,3.57426598,93.939,93.881,2.85549555]
[1773658840613,3.57426598,93.939,93.89,3.62741329]
[1773658841013,3.57426598,93.939,93.881,2.85549555]
[1773658841314,11.31474527,93.955,93.881,2.85549555]
[1773658841315,3.57426598,93.929,93.881,2.85549555]
[1773658842607,11.31474527,93.955,93.881,2.85549555]
[1773658842805,14.88901125,93.955,93.91,3.62741329]
[1773658843005,14.88901125,93.955,93.906,2.84145023]
[1773658843006,3.57426598,93.954,93.906,2.84145023]
[1773658843211,3.57426598,93.954,93.91,3.62741329]
[1773658843416,3.57426598,93.954,93.906,2.84145023]
[1773658843713,3.62741329,93.95,93.901,2.84145023]
[1773658843909,3.57426598,93.949,93.901,2.84145023]
[1773658844213,3.57426598,93.919,93.873,2.86123113]
[1773658845214,3.57426598,93.932,93.88,6.55726454]
[1773658845415,7.20167927,93.93,93.88,6.55726454]
[1773658845610,7.20167927,93.93,93.881,2.92985125]
[1773658846011,33.54,93.954,93.901,2.73249884]
[1773658846312,2.11512281,93.954,93.92,3.62741329]
[1773658846512,11.31474527,93.955,93.92,3.62741329]
[1773658849216,33.54,93.999,93.9,33.54]
[1773658849417,23.93953495,94.009,93.95,3.62741329]
[1773658849620,23.93953495,93.999,93.94,3.62741329]
[1773658850814,23.91737487,93.989,93.93,3.62741329]
[1773658851521,23.91737487,93.989,93.94,3.62741329]
[1773658851821,23.91737487,93.989,93.92,33.52]
[1773658851822,23.90401798,93.979,93.92,37.14741329]
[1773658852618,23.90969956,93.969,93.92,33.52]
[1773658853316,23.90969956,93.969,93.883,13.1519699]
[1773658853521,23.90969956,93.969,93.91,3.62741329]
[1773658855323,23.94351762,93.959,93.9,3.62741329]
[1773658859317,23.94351762,93.959,93.893,13.1519699]
[1773658859721,23.94351762,93.959,93.9,3.62741329]
[1773658859919,23.94351762,93.959,93.91,3.62741329]
[1773658860924,23.96655801,93.939,93.884,33.52]
[1773658862124,23.96534928,93.929,93.884,33.52]
[1773658862818,3.62741329,93.92,93.884,33.52]
[1773658863017,27.58981198,93.92,93.884,33.52]
[1773658864224,23.97141727,93.909,93.884,33.52]
[1773658864423,23.97141727,93.909,93.85,3.62741329]
[1773658864928,23.97141727,93.909,93.851,33.54]
[1773658865730,23.97141727,93.909,93.86,3.62741329]
[1773658867326,23.97141727,93.909,93.851,33.54]
[1773658868033,23.94591713,93.899,93.851,33.54]
[1773658868233,23.94591713,93.889,93.851,33.54]
[1773658868530,23.94591713,93.889,93.83,3.62741329]
[1773658868933,23.94591713,93.889,93.83,37.16741329]
[1773658869535,23.96533411,93.879,93.83,33.54]
[1773658870032,3.62741329,93.87,93.83,33.54]
[1773658870727,33.54,93.916,93.83,33.54]
[1773658870728,23.96863508,93.915,93.86,3.62741329]
[1773658871732,23.96863508,93.909,93.85,3.62741329]
[1773658874730,33.54,93.922,93.89,3.62741329]
[1773658874927,23.90742147,93.935,93.88,3.62741329]
[1773658876632,23.91145755,93.929,93.875,33.54]
[1773658876830,23.91145755,93.929,93.88,3.62741329]
[1773658878830,23.91145755,93.929,93.875,33.54]
[1773658879130,23.91145755,93.929,93.88,3.62741601]
[1773658880334,23.90023381,93.919,93.875,33.54]
[1773658880931,23.90179364,93.909,93.875,33.54]
[1773658881537,23.90179364,93.951,93.875,33.54]
[1773658881735,23.90179364,93.929,93.875,33.54]
[1773658881940,23.9436345,93.919,93.875,33.54]
[1773658883238,23.9436345,93.919,93.868,33.54]
[1773658884033,23.94908945,93.909,93.868,33.54]
[1773658884637,23.94908945,93.899,93.868,33.54]
[1773658887241,23.94908945,93.899,93.852,33.54]
[1773658887441,23.94908945,93.899,93.853,33.54]
[1773658888338,23.99364714,93.889,93.827,33.54]
[1773658888639,23.99364714,93.879,93.828,33.54]
[1773658888842,23.99364714,93.879,93.82,3.62741601]
[1773658889241,23.99364714,93.879,93.821,33.54]
[1773658889840,27.62167462,93.89,93.84,3.62741601]
[1773658890040,3.62741601,93.88,93.83,3.62741601]
[1773658890640,27.62167462,93.88,93.821,33.54]
[1773658891042,23.96659801,93.869,93.821,33.54]
[1773658895648,23.9859025,93.859,93.821,33.54]
[1773658901152,27.60677885,93.85,93.821,33.54]
[1773658902362,23.97989554,93.894,93.83,3.62741601]
[1773658902658,23.97989554,93.879,93.821,33.54]
[1773658903856,33.56,93.907,93.821,33.54]
[1773658903857,23.9790494,93.859,93.821,33.54]
[1773658904253,27.60646541,93.85,93.821,33.54]
[1773658911662,3.62741601,93.84,93.821,33.54]
[1773658911858,27.60646541,93.85,93.821,33.54]
[1773658913067,27.60960613,93.84,93.78,3.62741601]
[1773658913269,27.60960613,93.84,93.781,33.56]
[1773658914268,7.21547564,93.877,93.79,3.62741601]
[1773658914469,7.21547564,93.849,93.79,3.62741601]
[1773658915463,7.21547564,93.849,93.781,33.56]
[1773658915664,7.21547564,93.849,93.79,3.62741601]
[1773658917167,7.12064801,93.839,93.781,33.56]
[1773658917369,3.62741601,93.83,93.781,33.56]
[1773658918269,7.12041274,93.829,93.781,33.56]
[1773658919262,7.12628191,93.819,93.781,33.56]
[1773658923368,7.139091,93.849,93.8,3.62741601]
[1773658923663,7.139091,93.849,93.79,3.62741601]
[1773658924570,7.13013195,93.829,93.781,33.56]
[1773658926876,7.05838246,93.819,93.781,33.56]
[1773658929870,3.62741601,93.83,93.781,33.56]
[1773658930068,7.07092408,93.833,93.781,33.56]
[1773658930269,7.07092408,93.833,93.79,3.62741601]
[1773658932780,7.07234751,93.846,93.8,3.62741601]
[1773658932985,7.08078865,93.889,93.81,3.62741601]
[1773658933177,52.728,93.89,93.811,33.56]
[1773658933178,7.08078865,93.869,93.811,33.56]
[1773658934078,7.08078865,93.869,93.82,3.62741601]
[1773658936183,7.08078865,93.869,93.811,33.56]
[1773658937276,7.08078865,93.869,93.82,3.62741601]
[1773658939185,7.08078865,93.869,93.83,3.62741601]
[1773658940278,7.08078865,93.869,93.811,33.56]
[1773658940481,7.08078865,93.869,93.82,3.62741601]
[1773658940675,33.56,93.898,93.82,3.62741601]
[1773658940876,33.56,93.898,93.811,33.56]
[1773658940877,7.08419991,93.919,93.88,3.62800237]
[1773658942276,7.02377842,93.949,93.89,3.62800237]
[1773658943088,7.02377842,93.949,93.9,3.62800237]
[1773658943584,7.02377842,93.949,93.89,3.62800237]
[1773658948986,7.02377842,93.949,93.874,33.56]
[1773658949188,6.98346058,93.939,93.89,3.62800237]
[1773658949391,6.98346058,93.939,93.88,3.62800237]
[1773658949789,6.98346058,93.939,93.874,33.56]
[1773658949995,10.62688175,93.93,93.88,3.62800237]
[1773658950295,6.99887938,93.93,93.88,3.62800237]
[1773658950496,6.99887938,93.929,93.874,33.56]
[1773658951792,7.00181499,93.909,93.802,13.11544289]
[1773658951990,3.62800237,93.9,93.84,3.62800237]
[1773658952190,7.02774,93.899,93.84,3.62800237]
[1773658952387,3.62800237,93.89,93.84,3.62800237]
[1773658952891,33.56,93.988,93.803,33.54]
[1773658952892,7.04244774,93.938,93.826,19.181]
[1773658953092,19.15,93.977,93.87,3.62800237]
[1773658953093,7.04244774,93.929,93.87,3.62800237]
[1773658953394,7.04244774,93.919,93.87,3.62800237]
[1773658954190,7.04244774,93.919,93.861,33.54]
[1773658956994,7.05027542,93.909,93.861,33.54]
[1773658958298,3.62800237,93.9,93.861,33.54]
[1773658959398,7.04793377,93.899,93.861,33.54]
[1773658959790,19.155,93.955,93.803,19.186]
[1773658959791,7.04793377,93.889,93.83,3.62800237]
[1773658959996,3.62800237,93.88,93.83,3.62800237]
[1773658961294,10.67517188,93.88,93.82,3.62800237]
[1773658961498,7.04716951,93.879,93.82,3.62800237]
[1773658961694,7.04716951,93.879,93.826,33.54]
[1773658966102,3.62800237,93.89,93.84,3.62800237]
[1773658966493,7.04241639,93.889,93.84,3.62800237]
[1773658966696,7.04241639,93.889,93.83,3.62800237]
[1773658967996,7.04259546,93.919,93.826,33.54]
[1773658968198,7.04259546,93.909,93.86,3.62800237]
[1773658968405,7.04259546,93.909,93.85,3.62800237]
[1773658970702,7.04259546,93.909,93.86,3.62800237]
[1773658971004,7.04259546,93.909,93.85,3.62800237]
[1773658973504,7.04719261,93.899,93.84,3.62800237]
[1773658977207,3.62800237,93.89,93.84,3.62800237]
[1773658977610,7.05150855,93.89,93.84,3.62800237]
[1773658978117,7.05150855,93.89,93.83,3.62800237]
[1773658978506,7.05931365,93.889,93.83,3.62800237]
[1773658980316,7.05618692,93.869,93.826,33.54]
[1773658980507,7.05618692,93.846,93.79,3.62800237]
[1773658980709,3.62800237,93.84,93.78,3.62800237]
[1773658980914,7.05467741,93.839,93.78,3.62800237]
[1773658981113,19.84647277,93.94,93.705,106.7]
[1773658981114,7.05467741,93.829,93.77,3.62800237]
[1773658981314,7.05467741,93.829,93.779,33.54]
[1773658983313,7.05467741,93.829,93.78,3.62800237]
[1773658984211,7.0866484,93.877,93.82,3.62800237]
[1773658984404,3.62800237,93.87,93.81,3.62800237]
[1773658984607,7.0866484,93.869,93.81,3.62800237]
[1773658988518,7.0866484,93.869,93.82,3.62800237]
[1773658991313,7.0866484,93.869,93.81,3.62800237]
[1773658993021,7.10166944,93.859,93.8,3.62800237]
[1773658995019,7.10166944,93.859,93.81,3.62800237]
[1773658996322,7.06584882,93.849,93.79,3.62800237]
[1773659002316,7.06093234,93.839,93.78,3.62800237]
[1773659002922,7.06093234,93.839,93.78,3.63547467]
[1773659005423,7.06093234,93.839,93.779,33.54]
[1773659006625,7.06093234,93.839,93.79,3.63547467]
[1773659007028,7.06093234,93.839,93.78,3.63547467]
[1773659008333,7.06093234,93.839,93.78,37.19547467]
[1773659009030,7.06093234,93.839,93.78,33.56]
[1773659010430,7.11152605,93.829,93.78,33.56]
[1773659013931,7.11456564,93.819,93.78,33.56]
[1773659017036,3.63547467,93.81,93.78,33.56]
[1773659017433,7.11456564,93.819,93.78,33.56]
[1773659018538,7.0589858,93.813,93.78,33.56]
[1773659019935,7.07548292,93.81,93.78,33.56]
[1773659020131,10.71095759,93.81,93.78,33.56]
[1773659020437,7.07548292,93.809,93.78,33.56]
[1773659020637,3.63547467,93.8,93.755,8.65504253]
[1773659021739,2.131,93.796,93.755,8.65504253]
[1773659023140,19.18,93.834,93.755,8.65504253]
[1773659023141,2.131,93.803,93.755,8.65504253]
[1773659023440,2.131,93.803,93.761,8.67177321]
[1773659023838,3.63547467,93.83,93.771,8.67177321]
[1773659024038,3.63547467,93.82,93.771,8.67177321]
[1773659027638,3.63547467,93.81,93.771,8.67177321]
[1773659028642,3.63547467,93.81,93.755,8.52178474]
[1773659029043,3.63547467,93.79,93.755,8.52178474]
[1773659029242,3.63547467,93.79,93.754,33.58]
[1773659032341,3.63547467,93.79,93.742,8.5216452]
[1773659032841,3.63547467,93.8,93.742,8.5216452]
[1773659034039,3.63547467,93.79,93.742,8.5216452]
[1773659035846,3.63547467,93.78,93.742,8.5216452]
[1773659038042,19.183,93.818,93.742,8.5216452]
[1773659038242,3.63547467,93.79,93.742,8.5216452]
[1773659038638,19.183,93.818,93.742,8.5216452]
[1773659038639,3.63547467,93.78,93.742,8.5216452]
[1773659038842,3.63547467,93.78,93.731,33.58]
[1773659039043,3.63547467,93.77,93.731,33.58]
[1773659039640,2.132,93.761,93.731,33.58]
[1773659041149,2.132,93.761,93.731,41.94967577]
[1773659041347,2.132,93.761,93.732,8.36967577]
[1773659042045,3.63547467,93.79,93.732,8.36967577]
[1773659042950,3.63547467,93.79,93.741,8.37803541]
[1773659049253,19.184,93.813,93.741,8.37803541]
[1773659049546,3.63547467,93.79,93.741,8.37803541]
[1773659053649,3.63547467,93.78,93.741,8.37803541]
[1773659053851,8.03334866,93.816,93.751,8.32177941]
[1773659054053,3.63547467,93.79,93.751,8.32177941]
[1773659054655,3.63547467,93.78,93.751,8.32177941]
[1773659055553,2.132,93.774,93.751,8.32177941]
[1773659059157,3.63547467,93.79,93.751,8.32177941]
[1773659059356,3.63547467,93.79,93.732,8.27672054]
[1773659059858,2.132,93.774,93.732,8.27672054]
[1773659061456,19.184,93.814,93.732,8.27672054]
[1773659061660,3.63547467,93.78,93.732,8.27672054]
[1773659062559,2.132,93.763,93.732,8.27672054]
[1773659066456,3.64009434,93.78,93.732,8.27672054]
[1773659067257,3.64009434,93.77,93.732,8.27672054]
[1773659070055,9.92521418,93.799,93.732,8.27672054]
[1773659070258,3.64009434,93.77,93.732,8.27672054]
[1773659071865,3.64009434,93.78,93.732,8.27672054]
[1773659074766,3.64009434,93.77,93.732,8.27672054]
[1773659075068,9.92521418,93.808,93.731,33.58]
[1773659075069,3.64009434,93.79,93.741,8.31448318]
[1773659076266,3.64009434,93.78,93.741,8.31448318]
[1773659077460,33.58,93.811,93.741,8.31448318]
[1773659077461,3.64009434,93.77,93.741,8.31448318]
[1773659078162,19.19,93.785,93.705,8.3124178]
[1773659078358,3.64009434,93.76,93.705,8.3124178]
[1773659081765,3.64009434,93.76,93.706,8.32443293]
[1773659082664,3.64009434,93.77,93.711,8.32519617]
[1773659084071,3.64009434,93.77,93.721,8.3195443]
[1773659084568,3.64009434,93.78,93.721,8.3195443]
[1773659086373,3.64009434,93.77,93.721,8.3195443]
[1773659088776,3.64009434,93.78,93.721,8.3195443]
[1773659092381,3.64009434,93.77,93.721,8.3195443]
[1773659094986,19.187,93.795,93.721,8.3195443]
[1773659094987,3.64009434,93.78,93.721,8.3195443]
[1773659099588,19.187,93.795,93.698,33.58]
[1773659099589,3.64009434,93.79,93.731,8.30638727]
[1773659100081,19.187,93.795,93.731,8.30638727]
[1773659100282,3.64009434,93.79,93.731,8.30638727]
[1773659100887,33.58,93.81,93.761,8.32532909]
[1773659101086,13.23361891,93.83,93.771,8.32532909]
[1773659101087,3.64009434,93.83,93.771,8.32532909]
[1773659101389,3.64009434,93.83,93.78,3.64009434]
[1773659101592,3.64009434,93.83,93.781,8.32532909]
[1773659103485,3.64009434,93.82,93.761,8.31416963]
[1773659103688,3.64009434,93.81,93.761,8.31416963]
[1773659107096,3.64009434,93.83,93.771,8.30879172]
[1773659108689,3.64009434,93.84,93.781,8.30440044]
[1773659109494,3.64009434,93.83,93.781,8.30440044]
[1773659111996,3.64009434,93.82,93.781,8.30440044]
[1773659114705,3.64009434,93.81,93.761,8.29771599]
[1773659116202,3.64009434,93.8,93.761,8.29771599]
[1773659120103,19.181,93.828,93.761,8.29771599]
[1773659120304,3.64009434,93.82,93.761,8.29771599]
[1773659123503,3.64009434,93.81,93.761,8.29771599]
[1773659124103,3.64009434,93.82,93.761,8.29771599]
[1773659124906,3.63683037,93.82,93.761,8.29771599]
[1773659125610,3.63683037,93.81,93.761,8.29771599]
[1773659128708,3.63683037,93.82,93.761,8.29771599]
[1773659130315,19.181,93.828,93.771,8.44173313]
[1773659130517,3.63683037,93.83,93.771,8.44173313]
[1773659132613,3.63683037,93.84,93.781,8.43979565]
[1773659133409,3.63683037,93.83,93.781,8.43979565]
[1773659138617,3.63683037,93.84,93.781,8.43979565]
[1773659139018,3.63683037,93.83,93.781,8.43979565]
[1773659144814,3.63683037,93.84,93.781,8.43979565]
[1773659145724,3.63683037,93.85,93.791,8.4403255]
[1773659146225,3.63683037,93.85,93.801,8.4403255]
[1773659157422,9.92973109,93.886,93.81,3.63683037]
[1773659157621,21.02280303,93.889,93.811,8.44031883]
[1773659157622,3.63683037,93.87,93.811,8.44031883]
[1773659158533,3.63683037,93.87,93.821,8.44031883]
[1773659158722,3.63683037,93.88,93.821,8.44031883]
[1773659159030,3.63683037,93.88,93.83,3.63683037]
[1773659159226,3.63683037,93.88,93.831,8.44031883]
[1773659160234,3.63683037,93.86,93.811,8.44031883]
[1773659161125,3.63683037,93.88,93.821,8.44031883]
[1773659161730,3.63683037,93.88,93.831,8.44031883]
[1773659161930,3.63683037,93.89,93.831,8.44031883]
[1773659165233,3.63683037,93.89,93.809,33.58]
[1773659165234,3.63683037,93.9,93.841,8.44031883]
[1773659169130,3.63683037,93.89,93.841,8.44031883]
[1773659172737,3.63683037,93.88,93.841,8.44031883]
[1773659172928,3.63683037,93.87,93.841,8.44031883]
[1773659174937,3.63683037,93.86,93.811,8.44031883]
[1773659175730,3.63683037,93.87,93.811,8.44031883]
[1773659177934,3.63683037,93.89,93.831,8.44031883]
[1773659178131,3.63683037,93.89,93.84,3.63683037]
[1773659178331,3.63683037,93.89,93.802,33.56]
[1773659178332,3.63683037,93.89,93.841,8.44031883]
[1773659180138,3.63683037,93.88,93.841,8.44031883]
[1773659180731,3.63683037,93.87,93.841,8.44031883]
[1773659180937,3.63683037,93.87,93.811,8.44031883]
[1773659182031,3.63683037,93.87,93.82,3.63683037]
[1773659182232,3.63683037,93.87,93.821,8.44031883]
[1773659183840,3.63683037,93.86,93.821,8.44031883]
[1773659184137,3.63683037,93.85,93.79,3.63683037]
[1773659186038,3.63683037,93.85,93.791,7.1191096]
[1773659186538,3.63683037,93.84,93.791,7.1191096]
[1773659186739,3.63504651,93.84,93.791,7.1191096]
[1773659187435,3.63504651,93.83,93.791,7.1191096]
[1773659190246,3.63504651,93.84,93.791,7.1191096]
[1773659191143,3.63504651,93.83,93.791,7.1191096]
[1773659191342,3.63504651,93.81,93.778,7.1191096]
[1773659191844,3.63504651,93.82,93.778,7.1191096]
[1773659194043,3.63504651,93.83,93.78,3.63504651]
[1773659194241,3.63504651,93.83,93.781,7.1191096]
[1773659197349,19.174,93.861,93.781,7.1191096]
[1773659197551,3.63504651,93.84,93.781,7.1191096]
[1773659197854,19.169,93.884,93.781,7.1191096]
[1773659198048,3.63504651,93.89,93.831,7.1191096]
[1773659198450,3.63504651,93.89,93.833,7.1191096]
[1773659198949,3.63504651,93.9,93.841,7.1191096]
[1773659199555,3.63504651,93.89,93.841,7.1191096]
[1773659199748,19.161,93.924,93.841,7.1191096]
[1773659199749,3.63504651,93.88,93.841,7.1191096]
[1773659201853,3.63504651,93.9,93.841,7.1191096]
[1773659202158,3.63504651,93.9,93.851,7.1191096]
[1773659203057,3.63504651,93.91,93.851,7.1191096]
[1773659203954,3.63504651,93.9,93.851,7.1191096]
[1773659204155,3.63504651,93.89,93.833,7.18414767]
[1773659204356,2.13,93.878,93.841,7.18414767]
[1773659204554,2.13,93.878,93.834,33.56]
[1773659204555,3.63504651,93.9,93.851,6.11914767]
[1773659211864,3.63504651,93.89,93.851,6.11914767]
[1773659212270,3.63504651,93.89,93.835,5.92888093]
[1773659217174,3.63504651,93.88,93.835,5.92888093]
[1773659218174,3.63504651,93.87,93.835,5.92888093]
[1773659219272,3.63504651,93.88,93.835,5.92888093]
[1773659220370,3.63504651,93.87,93.835,5.92888093]
[1773659220570,3.63504651,93.87,93.828,33.56]
[1773659220777,3.63504651,93.85,93.828,33.56]
[1773659220976,3.63504651,93.86,93.828,33.56]
[1773659221578,3.63504651,93.87,93.828,39.5531535]
[1773659222781,3.63504651,93.87,93.829,5.99915442]
[1773659223374,3.63504651,93.86,93.829,5.99915442]
[1773659229682,3.63504651,93.85,93.828,33.56]
[1773659229882,19.171,93.877,93.828,33.56]
[1773659230084,3.63504651,93.85,93.817,6.03135223]
[1773659230279,3.63504651,93.84,93.817,6.03135223]
[1773659230779,3.63504651,93.87,93.817,6.03135223]
[1773659233282,3.63504651,93.85,93.808,33.56]
[1773659233587,3.63504651,93.84,93.808,33.56]
[1773659236088,3.63504651,93.85,93.808,39.63035305]
[1773659237584,3.63504651,93.85,93.809,6.0799576]
[1773659239489,3.63504651,93.84,93.809,6.0799576]
[1773659240391,3.63504651,93.86,93.809,6.0799576]
[1773659244092,3.63504651,93.86,93.81,3.63504651]
[1773659244390,3.63504651,93.86,93.811,6.09953027]